Cogmind - Beta 16.1 @@@ ROGUE MODE // 2026.04.11 @ 00:07:09 Player: mephiles96 Result: Self-destructed Performance ------------- Evolutions (1) 500 Regions Visited (2) 400 Robots Destroyed (19) 95 Value Destroyed (254) 254 Prototype IDs (0) 0 Alien Tech Used (0) 0 Bonus (0) 0 TOTAL SCORE: 1249 Bonus ------- None Cogmind --------- Core Integrity 264/400 Matter 245/300 Energy 100/100 System Corruption 0% Temperature Cool (0) Movement Rolling (100) Location -9/Materials Parts ------- > --- POWER (1) -------- (None) > --- PROPULSION (2) --- Compact Wheel > --- UTILITY (4) ------ Medium Storage Unit Seismic Detector > --- WEAPON (2) ------- Light Assault Rifle > --- INVENTORY (10) --- Light Treads Aluminum Leg Compact Wheel Seismic Detector Assault Rifle Grenade Launcher Peak State ------------ > --- POWER ------------ Light Ion Engine > --- PROPULSION ------- Light Treads Light Treads > --- UTILITY ---------- Medium Storage Unit Improved Terrain Scanner Seismic Detector Medium Armor Plating > --- WEAPON ----------- EM Pulse Gun Light Assault Rifle > --- INVENTORY -------- Aluminum Leg Compact Wheel Compact Wheel Seismic Detector Assault Rifle Light Assault Rifle Grenade Launcher [Rating: 12] Favorites ----------- Power Light Ion Engine Engine Light Ion Engine Propulsion Light Treads Treads Light Treads Wheel Compact Wheel Utility Seismic Detector Device Seismic Detector Storage Medium Storage Unit Protection Medium Armor Plating Weapon Light Assault Rifle Energy Gun EM Pulse Gun Ballistic Gun Light Assault Rifle Launcher Grenade Launcher Build | -11 -10 -9 ------- Run | Yrd Mat Mat Slots Evolved 2 | . . 2 Power . | . . . Propulsion . | . . . Utility 2 | . . 2 Weapon . | . . . Parts Attached 15 | 8 5 2 Power 2 | 1 1 . Engine 2 | 1 1 . Core . | . . . Reactor . | . . . Propulsion 3 | 2 1 . Treads 2 | 2 . . Leg . | . . . Wheel 1 | . 1 . Hover . | . . . Flight . | . . . Utility 5 | 2 1 2 Device 2 | 1 . 1 Storage 2 | 1 1 . Processor . | . . . Hackware . | . . . Protection 1 | . . 1 Artifact . | . . . Weapon 5 | 3 2 . Energy Gun 1 | 1 . . Energy Cannon . | . . . Ballistic Gun 3 | 2 1 . Ballistic Cannon . | . . . Launcher 1 | . 1 . Special Weapon . | . . . Impact Weapon . | . . . Slashing Weapon . | . . . Piercing Weapon . | . . . Special Melee Weapon . | . . . Unidentified Prototypes . | . . . Parts Lost 7 | . 1 6 Power 2 | . 1 1 Propulsion 1 | . . 1 Utility 2 | . . 2 Weapon 2 | . . 2 Highest Loss Streak 6 | . 1 6 To Critical Strikes . | . . . Average Backups 7 | 6 7 6 Power . | . . . Propulsion 3 | 3 3 3 Utility 1 | . 2 1 Weapon 1 | . 1 2 Tool/Special . | . . . Unused Backups 5 | 1 1 3 Power . | . . . Propulsion 4 | 1 1 2 Utility 1 | . . 1 Weapon . | . . . Tool/Special . | . . . Average Slot Usage (%) 96 | . 99 92 Engine 12 | . 13 10 Treads 17 | . 19 14 Wheel 7 | . 8 6 Device 17 | . 14 20 Storage 12 | . 14 11 Protection 3 | . . 6 Energy Gun 3 | . . 7 Ballistic Gun 20 | . 26 13 Launcher 1 | . 1 . Peak Build Rating 12 | 8 8 12 Average Rating 8 | 6 7 10 On Entrance 5 | . 8 8 Avg Prop Armor Cover (%) 11 | . 12 8 Naked Turns . | . . . Heaviest Build 25 | 12 18 25 Greatest Support 40 | 40 40 40 Greatest Overweight (x) 1 | 1 1 1 Average Overweight (x) . | . . . Largest Inventory Capacity 10 | 8 10 10 Average Capacity 9 | 7 9 10 Most Carried 8 | 8 8 8 Average Carried 7 | 6 7 6 Final Capacity 10 | 8 10 10 Final Carried 8 | 8 8 6 Class Distribution -------------------- 100% | Mutant Dominant Class ---------------- Mutant | -10/Materials Mutant | -9/Materials Resources | -11 -10 -9 ----------- Run | Yrd Mat Mat Matter Collected 568 | 327 137 104 Remotely . | . . . Salvage Created 410 | 134 131 145 Parts 29 | 9 8 12 Haulers Intercepted 2 | . 1 1 Recyclers Shooed 3 | 2 1 . Parts Field Recycled . | . . . Retrieved Matter . | . . . Parts Self-Destructed . | . . . Prevented . | . . . Parts Restored . | . . . Kills | -11 -10 -9 ------- Run | Yrd Mat Mat Combat Hostiles Destroyed 13 | . 5 8 Guns 3 | . 2 1 AOE 10 | . 3 7 Classes Destroyed 6 | 2 3 1 Tunneler 3 | 3 . . Hauler 2 | . 1 1 Recycler 1 | 1 . . Swarmer 10 | . 3 7 Grunt 2 | . 2 . Sentry 1 | . . 1 Best Kill Streak 7 | 2 3 7 Combat Bots Only 7 | . 3 7 Max Kills in Single Turn 3 | 1 2 3 Gunslinging . | . . . Exploded 3 | . 2 3 Melee . | . . . Uniques/NPCs Destroyed . | . . . Combat | -11 -10 -9 -------- Run | Yrd Mat Mat Hostile Shots Fired 105 | . 28 77 Missed 28 | . 7 21 Hits 77 | . 21 56 Projectile 77 | . 21 56 Critical Strikes 2 | . . 2 Damage Taken 1068 | . 287 781 Core 187 | . 51 136 Absorbed by Shields . | . . . Core Remaining (%) 89 | 100 79 . Volleys Fired 60 | 13 16 31 Largest 2 | 2 2 2 Hottest 60 | 40 40 60 Shots Fired 109 | 26 28 55 Gun 100 | 26 24 50 Cannon . | . . . Launcher 9 | . 4 5 Special . | . . . Kinetic 91 | 26 24 41 Thermal . | . . . Explosive 9 | . 4 5 Electromagnetic 9 | . . 9 Robot Hit Streak 14 | 10 14 12 Robot Miss Streak 4 | 2 3 4 Penetration Max . | . . . Secondary Targets 1 | . . 1 Max Gunslinging Chain 1 | . . 1 Shots Hit Robots 69 | 20 11 38 Core Hits 26 | 6 9 11 Critical Kills 1 | 1 . . Critical Parts Destroyed 1 | 1 . . Critical Strikes 2 | 2 . . Destroy 2 | 2 . . Melee Attacks . | . . . Impact . | . . . Slashing . | . . . Piercing . | . . . Sneak Attacks . | . . . Combat Hostiles . | . . . Follow-up Attacks . | . . . Damage Inflicted 1354 | 202 293 859 Guns 676 | 202 138 336 Cannons . | . . . Explosions 673 | . 155 518 Melee . | . . . Ramming 5 | . . 5 Kinetic 580 | 202 138 240 Thermal . | . . . Explosive 673 | . 155 518 Electromagnetic 96 | . . 96 Impact . | . . . Slashing . | . . . Piercing . | . . . Highest Corruption . | . . . Average Corruption . | . . . Corruption Purged . | . . . Corruption Blocked . | . . . Overload Shots . | . . . Overflow Damage 77 | . 16 61 Projectiles . | . . . Explosions 77 | . 16 61 Melee . | . . . Knockbacks . | . . . Impact . | . . . Kinetic . | . . . Secondary . | . . . Self-Inflicted Damage 2 | . . 2 Shots . | . . . Rammed 1 | . . 1 Targets Rammed 1 | . . 1 Kicked . | . . . Crushed . | . . . Highest Temperature 57 | . 13 57 Average Temperature 24 | . 8 28 Received Heat Transfer 333 | . 90 243 Siege Activations . | . . . Martial Activations . | . . . Shielding Activations . | . . . Robots Disrupted . | . . . Combat Hostiles . | . . . Robots Corrupted . | . . . Combat Hostiles . | . . . Parts Fried . | . . . Impact Corruptions . | . . . Robots Melted . | . . . Combat Hostiles . | . . . Parts Melted . | . . . Heat Transferred . | . . . Parts Sabotaged . | . . . Parts Stolen . | . . . Parts Stripped . | . . . Power Chain Reactions . | . . . Alert | -11 -10 -9 ------- Run | Yrd Mat Mat Maximum Alert Level 1 | . . 1 Low Security (%) 94 | 100 100 84 Level 1 5 | . . 15 Level 2 . | . . . Level 3 . | . . . Level 4 . | . . . Level 5 . | . . . High Security . | . . . Max Security . | . . . Peak Influence 212 | 5 103 212 Initial 26 | . . 26 Average 63 | . 32 144 Influence Increases 426 | 20 163 243 Destroy 0b10 Robot/C 260 | . 100 160 Destroy 0b10 Robot/NC 30 | 20 5 5 Destroy Leader 54 | . 22 32 Successful Hack 20 | . . 20 Disable Machine 15 | . 15 . Destroy Structure 47 | . 21 26 Influence Decreases 357 | 20 100 237 Entered New Map 37 | . . 37 Time Decay 250 | 20 90 140 Lost Part 70 | . 10 60 Squads Dispatched 3 | . 2 1 Investigation 2 | . 1 1 Extermination . | . . . Reinforcement 1 | . 1 . Assault . | . . . Garrison . | . . . Intercept . | . . . Searches Triggered . | . . . Construction Impeded . | . . . Haulers Reinforced . | . . . Active Scanning Responses . | . . . Cargo Convoy Interrupts . | . . . Stealth | -11 -10 -9 --------- Run | Yrd Mat Mat Distress Signals 2 | . . 2 Communications Jammed . | . . . Distress Signals . | . . . Times Spotted 23 | . 7 16 Peak Tracking Total 7 | . 3 7 Tactical Retreats . | . . . Traps | -11 -10 -9 ------- Run | Yrd Mat Mat Traps Triggered 3 | . 3 . Indirectly . | . . . Trap Hack Attempts . | . . . Triggered . | . . . Disarmed . | . . . Reprogrammed . | . . . Reused . | . . . Traps Extracted . | . . . Installed . | . . . Triggered . | . . . Machines | -11 -10 -9 ---------- Run | Yrd Mat Mat Machines Disabled 1 | . 1 . Max in Single Turn 1 | . 1 . Machines Repaired . | . . . Machines Dismantled . | . . . Machines Sabotaged . | . . . Overloaded Fab Kills . | . . . Hacking | -11 -10 -9 --------- Run | Yrd Mat Mat Machines Accessed 4 | . 1 3 Terminals 3 | . 1 2 Fabricators . | . . . Repair Stations 1 | . . 1 Recycling Units . | . . . Scanalyzers . | . . . Garrison Access . | . . . Total Hacks 12 | . 2 10 Successful 6 | . . 6 Failed 6 | . 2 4 Catastrophic . | . . . Database Lockouts . | . . . Manual 8 | . 2 6 Terminals 10 | . 2 8 Fabricators . | . . . Repair Stations 2 | . . 2 Recycling Units . | . . . Scanalyzers . | . . . Garrison Access . | . . . Terminal Hacks 1 | . . 1 Terminal Index 1 | . . 1 Fabricator Hacks . | . . . Repair Station Hacks 1 | . . 1 Scan Component 1 | . . 1 Recycling Unit Hacks . | . . . Scanalyzer . | . . . Garrison Access Hacks . | . . . Unauthorized Hacks 4 | . . 4 Terminals 4 | . . 4 Track 2 | . . 2 Botnet 1 | . . 1 Operators 1 | . . 1 Fabricators . | . . . Repair Stations . | . . . Recycling Units . | . . . Scanalyzers . | . . . Garrison Access . | . . . Data Cores Recovered . | . . . Used . | . . . Hacking Detections 4 | . 1 3 Full Trace Events 1 | . . 1 Feedback Events . | . . . Feedback Blocked . | . . . Robot Schematics Acquired . | . . . Robots Built . | . . . Authchips . | . . . Time . | . . . Total Robot Build Rating . | . . . Part Schematics Acquired . | . . . Parts Built . | . . . Authchips . | . . . Time . | . . . Total Part Build Rating . | . . . Part Studies Acquired . | . . . Parts Repaired . | . . . Time . | . . . Parts Recycled . | . . . Recycled Matter . | . . . Retrieved Matter . | . . . Retrieved Components . | . . . Parts Scanalyzed . | . . . Part Schematics Acquired . | . . . Parts Damaged . | . . . Bothacking | -11 -10 -9 ------------ Run | Yrd Mat Mat Used RIF Installer . | . . . Robots Hacked . | . . . Non-combat . | . . . Combat . | . . . Robot Hacks Applied . | . . . Relay Couplers Released . | . . . Fabnet Peak Effective % . | . . . Robots Rewired . | . . . Allies Hacked . | . . . Hacks Repelled . | . . . Allies | -11 -10 -9 -------- Run | Yrd Mat Mat Total Allies . | . . . Largest Group . | . . . Highest-Rated Group . | . . . Highest-Rated Ally . | . . . Total Orders . | . . . Ally Attacks . | . . . Total Damage . | . . . Kills . | . . . Allies Corrupted . | . . . Allies Melted . | . . . Intel | -11 -10 -9 ------- Run | Yrd Mat Mat Active Infowar (turns) 741 | 131 322 288 Terrain 256 | . . 256 Seismic 741 | 131 322 288 Robot Analysis Total . | . . . Derelict Logs Recovered . | . . . Drone Launches . | . . . Drone Recoveries . | . . . Exploration | -11 -10 -9 ------------- Run | Yrd Mat Mat Turns Passed 818 | 208 322 288 Spaces Moved 468 | 95 222 151 Core 9 | 9 . . Treads 200 | 86 58 56 Legs . | . . . Wheels 259 | . 164 95 Hover . | . . . Flight . | . . . Fastest Speed 50 | 50 100 115 Average Speed 129 | 151 118 131 Slowest Speed 160 | 160 160 160 Overloaded Moves . | . . . Propulsion Burnouts . | . . . Robots Hopped . | . . . Potential Cave-ins . | . . . Cave-ins Triggered . | . . . Exploration Rate (%) 18 | 6 28 20 Regions Visited 2 Branch Regions . Pre-discovered Areas . | . . . Known Exits Taken . | . . . Unknown Exits Taken 2 | 1 1 . Scrap Searched . | . . . Spaces Dug . | . . . Terrain Destroyed 62 | . 32 30 Melee . | . . . Projectile . | . . . AOE 62 | . 32 30 Terrain Rammed . | . . . Walls Destroyed . | . . . Machines Disabled . | . . . Actions | -11 -10 -9 --------- Run | Yrd Mat Mat Total 578 | 133 254 191 Wait 14 | 8 5 1 Move 466 | 94 221 151 Hop . | . . . Pick Up 11 | 9 1 1 Fast Attach 7 | 7 . . Attach 4 | . 1 3 Detach . | . . . Swap 12 | 1 8 3 Drop 3 | 1 2 . Fire 60 | 13 16 31 Melee . | . . . Ram 1 | . . 1 Kick . | . . . Crush . | . . . Escape Stasis . | . . . Rewire . | . . . Trap . | . . . Miscellaneous . | . . . Route ------- -11/Scrapyard -10/Materials -9/Materials History --------- Turn | Location | Event 9 | -11/Scrapyard | Discovered new exit (range 15) 209 | -11/Scrapyard | Entered Materials 310 | -10/Materials | Build established: Mutant 360 | -10/Materials | Discovered new exit (range 15) 531 | -10/Materials | Entered another Materials area 531 | -9/Materials | Evolved 2 slots: Utility x2 581 | -9/Materials | Destroyed 7 combat bots 819 | -9/Materials | Self-destructed Last Messages --------------- Storage Unit. 00777_ R-06 Scavenger collects Sml. Laser. 00784_ Nuclear Reactor explodes. 00784_ G-34 Mercenary destroyed. 00787_ Imp. Terrain Scanner destroyed. 00792_ Med. Armor Plating destroyed. 00795_ Lgt. Ion Engine destroyed. 00796_ A-02 Transporter destroyed. 00797_ The unstable cave ceiling collapses. 00798_ Lgt. Treads destroyed. 00799_ Critical hit (Burn: +37). 00802_ Y-45 Defender destroyed. 00802_ Switching to secondary target: Y-45 Defender. 00804_ Y-45 Defender misfires. 00809_ M-13 Machinist repairs M-13 Machinist. 00810_ Critical hit (Burn: +37). 00813_ Lgt. Assault Rifle destroyed. 00817_ K-01 Serf collects debris. 00819_ U-05 Engineer lays Concrete. Map ----- +----------------------------------------------------+ | ??????######+###### #?## #?????????????????????? | | ????????#?# #??# #?????????????????????? | | ?????#????# ##### #??# #?????????????????????? | | ??????#???# #???# #??# #??????????? ?????????? | | ########??# #####+#### #?????????????????????? | | """ #??# # # #?????????????????????? | | "T" #?## #! # #?????????????????????? | | g #??# # # #?????????????????????? | | #??# # | # #########?????????????? | | #??# # # # #????????????? | | #?## # !! / # #????????????? | | #?## # ! # # "" #????????????? | | #??# # # # "" #????? ??????? | | #??# # # [[# "" #????????????? | | ###+####### ########## [# " #????????????? | | ^=[[+ #????????????? | | !=# #????????????? | | ^ # #????????????? | | ######################## ##########????????????? | | ???????????############ #????????????????????? | | ?????????? #???????#????????????? | | ????? ???? T #????? ??????????????? | | ??#??????? ## #?????????????? | | ????????????########### u[[ #?????????????? | | ??????? ?????#????#???###Y#### = #?????????????? | | ??????????????????#?????#@#???? #?????????????? | | ??????????"???"?????#???#u#????? ?#?? ?????????? | | ???#????????????????????#%[#????? #??????????????? | | ??????? ??????"?????????%==???????#??????????????? | | ????????????????????????!==!??#??????????????????? | | ??????????? ???????? ??? ?????????????????????? | | ???????????????????????? ????????????????????? | | ????????????????? ????? #???????????????????? | | ??????????????????????? ???????????????????? | | ??????????????????????? Y ???????????????????? | | ??????????????????????? #??????????????????? | | ?????????????????????? #??????????????????? | | ??????????????????????# # ###??????????????????? | | ?????????????????????? ##????????????????????? | | ?????????????????????? k??????????????????????? | | ??????????????????????? ??????????????????????? | | ?????????????????????????????????????????????????? | | ?????????????????????????????????????????????????? | | ?????????????????????????????????????????????????? | | ?????????????????????????????????????????????????? | | ?????????????????????????????????????????????????? | | ?????????????????????????????????????????????????? | | ?????????????????????????????????????????????????? | | ?????????????????????????????????????????????????? | | ?????????????????????????????????????????????????? | +----------------------------------------------------+ Best States ------------- Heat Dissipation 28 Energy Generation 10 Energy Capacity 125 Matter Stores 300 Matter Capacity 300 Sight Range 16 Terrain Scan Range 16 Terrain Scan Density 10 Armor Coverage 225 Evasion (%) 40 Recoil Reduction 2 Item Schematics ----------------- None Robot Schematics ------------------ None Fabricated ------------ Nothing Repaired ---------- Nothing Studied --------- None Alien Tech Used ----------------- None Achievements -------------- None Challenges ------------ None Game ------ Seed PointControlNanoactuators Manual? 0 Play Time 00:11:01 Cumulative 44.8 hours Start 2026.04.10 @ 23:59:19 End 2026.04.11 @ 00:07:09 Sessions 1 Manual Loads 0 Difficulty Rogue Special Mode None Game No. 57 Rogue 57 Adventurer 0 Explorer 0 Win Type - Total 0 Types 0/0/0/0/0/0/0/0/0/0 Lore% 16 Gallery% 32 Achievement% 25 Wizard Run 0 Options --------- Layout 2 ASCII 0 Keyboard 0 Movement Numpad Keybinds 1 Fullscreen 1 Font 24/Smallcaps Map View 50x44 Zoom Use 0% Tactical HUD 1 Map Filters NONE Filters NONE Steam 1 RUN: 7c832913-829f-4116-8459-c24baf561e42